fUST/lending_fUST_20260408
["ID","MTS","AMOUNT","RATE_DAILY","PERIOD"]
[420035512,1775626914507,500.0,0.00034136,120]
[420035513,1775626914626,1262.22,0.00034136,120]
[420035514,1775626914723,500.0,0.00034136,120]
[420035515,1775626914840,1262.39646693,0.00034136,120]
[420035516,1775626914956,500.0,0.00034136,120]
[420035517,1775626915069,500.0,0.00034136,120]
[420035518,1775626915184,500.0,0.00034136,120]
[420035519,1775626915301,500.0,0.00034136,120]
[420035520,1775626915406,500.0,0.00034136,120]
[420035521,1775626915540,500.0,0.00034136,120]
[420035522,1775626915627,500.0,0.00034136,120]
[420035523,1775626915767,500.0,0.00034136,120]
[420035524,1775626915990,500.0,0.00034136,120]
[420035525,1775626916441,500.0,0.00034136,120]
[420035526,1775626916486,500.0,0.00034136,120]
[420035527,1775626916659,500.0,0.00034136,120]
[420035528,1775626916880,500.0,0.00034136,120]
[420035529,1775626917100,500.0,0.00034136,120]
[420035530,1775626917330,500.0,0.00034136,120]
[420035531,1775626917585,500.0,0.00034136,120]
[420035532,1775626917807,500.0,0.00034136,120]
[420035533,1775626918040,500.0,0.00034136,120]
[420035534,1775626918251,500.0,0.00034136,120]
[420035535,1775626918467,500.0,0.00034136,120]
[420035536,1775626918703,500.0,0.00034136,120]
[420035537,1775626918926,500.0,0.00034136,120]
[420035538,1775626919537,504.59415497,0.00034136,120]
[420035539,1775626921521,1153.48,0.00034136,120]
[420035540,1775626921739,1153.48,0.00034136,120]
[420035541,1775626921952,1153.48,0.00034136,120]
[420035542,1775626922197,1153.48,0.00034136,120]
[420035543,1775626922453,1153.48,0.00034136,120]
[420035544,1775626922685,1153.48,0.00034136,120]
[420035545,1775626922949,1153.48,0.00034136,120]
[420035546,1775626923192,1153.48,0.00034136,120]
[420035547,1775626923460,1153.48,0.00034136,120]
[420035548,1775626923704,1153.48,0.00034136,120]
[420035549,1775626923929,1153.48,0.00034136,120]
[420035550,1775626924170,1153.48,0.00034136,120]
[420035551,1775626924345,500.0,0.00034136,120]
[420035552,1775626924398,1153.48,0.00034136,120]
[420035553,1775626924574,500.0,0.00034136,120]
[420035554,1775626924625,1153.48,0.00034136,120]
[420035555,1775626924841,500.0,0.00034136,120]
[420035556,1775626924883,1153.48,0.00034136,120]
[420035557,1775626925076,344.76416926,0.00034136,120]
[420035558,1775626925131,1153.48,0.00034136,120]
[420035559,1775626925354,1153.48,0.00034136,120]
[420035560,1775626925581,1153.48,0.00034136,120]
[420035561,1775626925752,500.0,0.00034136,120]
[420035562,1775626925813,1153.48,0.00034136,120]
[420035563,1775626925970,500.0,0.00034136,120]
[420035564,1775626926030,1153.48,0.00034136,120]
[420035565,1775626926195,500.0,0.00034136,120]
[420035566,1775626926312,1153.48,0.00034136,120]
[420035567,1775626926413,445.62100492,0.00034136,120]
[420035568,1775626926542,1153.48,0.00034136,120]
[420035569,1775626926769,1153.48,0.00034136,120]
[420035570,1775626926984,1153.66303844,0.00034136,120]
[420035571,1775626936137,1170.1,0.00034136,120]
[420035572,1775626936407,1170.1,0.00034136,120]
[420035573,1775626936630,1170.1,0.00034136,120]
[420035574,1775626936858,1170.1,0.00034136,120]
[420035575,1775626937093,1170.1,0.00034136,120]
[420035576,1775626937328,1170.1,0.00034136,120]
[420035577,1775626937599,1170.1,0.00034136,120]
[420035578,1775626937820,1170.1,0.00034136,120]
[420035579,1775626938054,1170.1,0.00034136,120]
[420035580,1775626938281,1170.1,0.00034136,120]
[420035581,1775626938501,1170.1,0.00034136,120]
[420035582,1775626938727,1170.1,0.00034136,120]
[420035583,1775626938943,1170.1,0.00034136,120]
[420035584,1775626939201,1170.1,0.00034136,120]
[420035585,1775626939427,1170.1,0.00034136,120]
[420035586,1775626939487,607.0,0.00034136,120]
[420035587,1775626939691,1170.1,0.00034136,120]
[420035588,1775626939781,607.0,0.00034136,120]
[420035589,1775626939914,1170.1,0.00034136,120]
[420035590,1775626940008,607.0,0.00034136,120]
[420035591,1775626940144,1170.1,0.00034136,120]
[420035592,1775626940274,607.0,0.00034136,120]
[420035593,1775626940372,1170.1,0.00034136,120]
[420035594,1775626940495,607.0,0.00034136,120]
[420035595,1775626940594,1170.1,0.00034136,120]
[420035596,1775626940731,607.0,0.00034136,120]
[420035597,1775626940846,1170.1,0.00034136,120]
[420035598,1775626940965,607.0,0.00034136,120]
[420035599,1775626941067,1170.1,0.00034136,120]
[420035600,1775626941192,607.0,0.00034136,120]
[420035601,1775626941565,1170.1,0.00034136,120]
[420035602,1775626941614,607.0,0.00034136,120]
[420035603,1775626941659,1170.238239,0.00034136,120]
[420035604,1775626941709,607.0,0.00034136,120]
[420035605,1775626941894,607.0,0.00034136,120]
[420035606,1775626942061,1113.7,0.00034136,120]
[420035607,1775626942128,607.0,0.00034136,120]
[420035608,1775626942358,607.0,0.00034136,120]
[420035609,1775626942506,1003.63478726,0.00034136,120]
[420035610,1775626964044,1000.0,0.00031507,120]
[420035612,1775626983213,1000.0,0.00031507,120]
[420035614,1775627020207,170.2237334,0.0003,120]
[420035615,1775627020903,170.2237334,0.000309,120]
[420035616,1775627020997,174.87994861,0.0003,120]
[420035617,1775627021577,174.87994861,0.000309,120]
[420035618,1775627024853,308.82671349,0.0003,120]
[420035619,1775627025547,308.82671349,0.000309,120]
[420035620,1775627044409,172.76547367,0.0003,120]
[420035621,1775627044962,172.76547367,0.000309,120]
[420035622,1775627047768,507.01137183,0.0003,120]
[420035623,1775627048308,507.01137183,0.000309,120]
[420035624,1775627056371,217.31196413,0.0003,120]
[420035625,1775627056911,217.31196413,0.000309,120]
[420035626,1775627064875,400.06337085,0.0003,120]
[420035627,1775627065412,400.06337085,0.000309,120]
[420035631,1775627076751,321.48535817,0.0003,120]
[420035632,1775627077305,321.48535817,0.000309,120]
[420035633,1775627086934,500.0,0.000315,120]
[420035634,1775627087059,327.61839627,0.0003,120]
[420035635,1775627087612,327.61839627,0.000309,120]
[420035636,1775627087948,1388.97923318,0.0003,120]
[420035637,1775627088606,1388.97923318,0.000309,120]
[420035638,1775627092216,160.03572207,0.0003,120]
[420035639,1775627092451,774.43809406,0.0003,120]
[420035640,1775627092764,160.03572207,0.000309,120]
[420035641,1775627093033,774.43809406,0.000309,120]
[420035672,1775627113599,304.20682309,0.0003,120]
[420035673,1775627114159,304.20682309,0.000309,120]
[420035683,1775627120840,600.0,0.000315,120]
[420035762,1775627142031,500.0,0.000315,120]
[420035763,1775627164901,1000.0,0.000315,120]
[420035765,1775627236126,1000.0,0.000315,120]
[420035793,1775627293876,1000.0,0.000315,120]
[420035872,1775627333978,170.22373339,0.0003,120]
[420035873,1775627335102,174.8799486,0.0003,120]
[420035874,1775627336134,174.8799486,0.000309,120]
[420035875,1775627339940,185.29602809,0.0003,120]
[420035876,1775627340632,185.29602809,0.000309,120]
[420035894,1775627356239,182.52409386,0.0003,120]
[420035895,1775627356791,182.52409386,0.000309,120]
[420035896,1775627357822,172.76547366,0.0003,120]
[420035897,1775627365052,182.52409386,0.0003,120]
[420035898,1775627365622,182.52409386,0.000309,120]
[420035899,1775627370892,162.9839731,0.0003,120]
[420035900,1775627371450,162.9839731,0.000309,120]
[420035901,1775627379084,240.03802251,0.0003,120]
[420035902,1775627379618,240.03802251,0.000309,120]
[420035903,1775627391033,192.89121491,0.0003,120]
[420035904,1775627391698,192.89121491,0.000309,120]
[420035910,1775627402043,196.57103776,0.0003,120]
[420035911,1775627402296,196.57103776,0.000309,120]
[420035912,1775627405873,1111.18338655,0.0003,120]
[420035913,1775627406281,160.03572206,0.0003,120]
[420035914,1775627406442,1111.18338655,0.000309,120]
[420035915,1775627406577,464.66285644,0.0003,120]
[420035916,1775627406830,160.03572206,0.000309,120]
[420035917,1775627407126,464.66285644,0.000309,120]
[420035919,1775627429734,182.52409385,0.0003,120]
[420035932,1775627442246,-1117.96494346,0.00013463,2]
[420035933,1775627442258,-2077.03912957,0.00013463,2]
[420035934,1775627442269,-1804.99592697,0.00013463,2]
[420035935,1775627442279,-611.0,0.00013463,2]
[420035936,1775627442288,-209.55025923,0.00013599,2]
[420035937,1775627442297,-1000.0,0.00013699,2]
[420035939,1775627442306,-193.17432819,0.00017869,2]
[420035963,1775627442513,-295.69654001,0.00017869,2]
[420035965,1775627442523,-350.09780725,0.00018809,2]
[420035967,1775627442533,-198.93,0.00019498,7]
[420035970,1775627442543,-657.76517009,0.000195,2]
[420035973,1775627442552,-572419.42655294,0.000195,2]
[420035975,1775627442564,-635.16775901,0.000195,2]
[420035979,1775627442576,-925.62566464,0.000195,2]
[420036165,1775627444423,-1523.07426903,0.000195,2]
[420036168,1775627444435,-1107.9990059,0.000195,2]
[420036401,1775627447017,-1263.47059368,0.00014175,2]
[420036404,1775627447030,-791.59011485,0.00014175,2]
[420036406,1775627447040,-5552.57628258,0.00014575,2]
[420036408,1775627447049,-1486.86615021,0.00018383,3]
[420037597,1775627580479,482162.0,0.00031506,120]
[420037626,1775627648909,174.87994861,0.0003,120]
[420037629,1775627656648,185.29602809,0.0003,120]
[420037630,1775627657229,185.29602809,0.000309,120]
[420037636,1775627685765,162.9839731,0.0003,120]
[420037637,1775627686681,162.9839731,0.000309,120]
[420037639,1775627693868,180.02851688,0.0003,120]
[420037640,1775627694424,180.02851688,0.000309,120]
[420037647,1775627705858,192.8912149,0.0003,120]
[420037648,1775627706410,192.8912149,0.000309,120]
[420037652,1775627716701,196.57103776,0.0003,120]
[420037654,1775627717245,196.57103776,0.000309,120]
[420037657,1775627719415,160.03572207,0.0003,120]
[420037659,1775627721839,278.79771386,0.0003,120]
[420037660,1775627722395,278.79771386,0.000309,120]
[420037661,1775627723316,1777.89341847,0.0003,120]
[420037662,1775627723861,1777.89341847,0.000309,120]
[420037674,1775627969655,185.29602809,0.0003,120]
[420037687,1775628007468,180.02851688,0.0003,120]
[420037688,1775628008009,180.02851688,0.000309,120]
[420037690,1775628019319,192.89121491,0.0003,120]
[420037692,1775628030510,196.57103775,0.0003,120]
[420037694,1775628036486,167.27862832,0.0003,120]
[420037695,1775628037279,167.27862832,0.000309,120]
[420037696,1775628038941,1066.73605108,0.0003,120]
[420037697,1775628039521,1066.73605108,0.000309,120]
[420037702,1775628081188,-556.13607784,0.00013157,2]
[420037706,1775628110177,167.27862831,0.000306,120]
[420037707,1775628110745,167.27862831,0.000315,120]
[420037708,1775628112335,640.04163065,0.000306,120]
[420037709,1775628113033,640.04163065,0.000315,120]
[420037710,1775628115966,349.77447,0.00031507,120]
[420037740,1775628389956,10000.0,0.00031507,120]
[420037741,1775628401311,10000.0,0.00031507,120]
[420037742,1775628414417,3703.35,0.00031507,120]
[420037743,1775628423616,167.27862832,0.000306,120]
[420037744,1775628426535,384.02497839,0.000306,120]
[420037745,1775628427084,384.02497839,0.000315,120]
[420037748,1775628548360,4829.65,0.00031507,120]
[420037849,1775628614962,165.17724863,0.0003,120]
[420037850,1775628620872,503.70759371,0.0003,120]
[420037869,1775628633112,-322.27543134,0.00013599,2]
[420037871,1775628633122,-1000.0,0.00013699,2]
[420037873,1775628633132,-615.0,0.00013699,2]
[420037875,1775628633141,-196.67222774,0.00015,2]
[420037877,1775628633151,-160.0,0.00016,3]
[420037879,1775628633161,-308.53575345,0.00016,5]
[420037881,1775628633171,-450.64,0.00017917,2]
[420037883,1775628633181,-488.40777874,0.00017917,30]
[420037885,1775628633190,-488.40777874,0.00017917,30]
[420037887,1775628633200,-1200.0,0.0001838,2]
[420037889,1775628633210,-300.0,0.00018381,2]
[420037891,1775628633219,-300.0,0.00018382,2]
[420037893,1775628633230,-300.0,0.00018382,2]
[420037895,1775628633240,-300.0,0.00018382,2]
[420037897,1775628633249,-4553.5976243,0.00018383,3]
[420037898,1775628633259,-488.40777874,0.00018383,30]
[420037899,1775628633269,-247.51039852,0.00018809,2]
[420037900,1775628633280,-386.34826269,0.00018809,2]
[420037901,1775628633289,-159.7397596,0.00018809,2]
[420037902,1775628633299,-4702.24404882,0.00018824,2]
[420037903,1775628633309,-488.40777874,0.0001911,30]
[420037904,1775628633318,-575.54452382,0.000192,2]
[420037905,1775628633328,-596.23761001,0.00019273,2]
[420037906,1775628633338,-512.11286659,0.00019273,2]
[420037907,1775628633347,-507.0954285,0.00019273,2]
[420037908,1775628633356,-500.0,0.00019273,2]
[420037909,1775628633366,-507.58526518,0.00019273,2]
[420037910,1775628633375,-500.0,0.00019273,2]
[420037911,1775628633385,-500.0,0.00019273,2]
[420037912,1775628633394,-500.0,0.00019299,2]
[420037913,1775628633404,-500.0,0.00019299,2]
[420037914,1775628633413,-352.25775466,0.00019299,2]
[420037915,1775628633422,-500.0,0.00019299,2]
[420037916,1775628633432,-465.79501583,0.00019299,2]
[420037917,1775628633441,-155.06446815,0.00019299,2]
[420037918,1775628633451,-500.0,0.00019299,2]
[420037919,1775628633461,-500.0,0.00019299,2]
[420037920,1775628633470,-500.0,0.00019299,2]
[420037921,1775628633480,-17002.08991379,0.000193,2]
[420037922,1775628633493,-1966.11974943,0.000193,2]
[420037923,1775628633504,-269.08724583,0.000193,2]
[420037924,1775628633516,-1163.34750901,0.000193,2]
[420037925,1775628633527,-626.58445331,0.000193,2]
[420037928,1775628639668,-5000.0,0.00019107,2]
[420037929,1775628639678,-6601.12201603,0.000193,2]
[420038345,1775628644599,-1175.5610122,0.0001874,2]
[420038347,1775628644609,-4972.37170157,0.000193,2]
[420038350,1775628644620,-16922.63187998,0.000193,2]
[420038352,1775628644632,-414.48375,0.000193,2]
[420038603,1775628647384,-6105.24333333,0.000193,2]
[420038604,1775628647396,-6899.15558261,0.000193,2]
[420038606,1775628647408,-5000.0,0.000193,2]
[420039539,1775628674068,10000.0,0.000315,120]
[420039571,1775628740697,230.41498704,0.000306,120]
[420039572,1775628741250,230.41498704,0.000315,120]
[420039578,1775628775546,10000.0,0.000315,120]
[420039581,1775628792391,545.28,0.000315,120]
[420039582,1775628795215,1430.0,0.00031506,120]
[420039586,1775628823195,6493.3,0.00031507,120]
[420039635,1775628956510,250.0,0.00031,120]
[420039645,1775629054775,172.81124027,0.000306,120]
[420039646,1775629055304,172.81124027,0.000315,120]
[420039668,1775629261736,1865.14378465,0.000315,120]
[420039676,1775629368242,172.81124028,0.000306,120]
[420039677,1775629368792,172.81124028,0.000315,120]
[420039783,1775629838408,-1000.0,0.00013699,2]
[420039785,1775629838419,-160.3620914,0.00016958,2]
[420039787,1775629838429,-1000.0,0.00018072,2]
[420039789,1775629838438,-391.85367074,0.00018654,2]
[420039791,1775629838448,-366.04975387,0.00018999,2]
[420039793,1775629838457,-500.0,0.00018999,2]
[420039794,1775629838466,-500.0,0.00018999,2]
[420039796,1775629838476,-500.0,0.00018999,2]
[420039799,1775629838487,-613.49613367,0.00018999,2]
[420039800,1775629838497,-500.0,0.00018999,2]
[420039802,1775629838508,-500.0,0.00018999,2]
[420039804,1775629838518,-215.87827171,0.00018999,2]
[420039805,1775629838528,-1349.27003637,0.00019,2]
[420039807,1775629838537,-503.60145836,0.00019,2]
[420039809,1775629838547,-20164.45533837,0.00019,2]
[420039811,1775629838560,-1437.21047514,0.00019,2]
[420039815,1775629838589,-28672.94912072,0.00019,2]
[420039818,1775629838606,-233316.25601687,0.00019,2]
[420039820,1775629838616,-300.0,0.00019072,2]
[420039822,1775629838625,-500.0,0.00019073,2]
[420039823,1775629838636,-500.0,0.00019073,2]
[420039826,1775629838646,-511.74477466,0.00019073,2]
[420039829,1775629838656,-500.0,0.00019073,2]
[420039832,1775629838666,-500.0,0.00019073,2]
[420039834,1775629838675,-196.39116048,0.00019089,2]
[420039836,1775629838686,-537.6845,0.00019089,2]
[420039838,1775629838696,-2150.738,0.00019089,2]
[420039840,1775629838706,-863.14,0.0001909,3]
[420039841,1775629838715,-26068.68087951,0.000191,2]
[420039844,1775629838726,-644.29,0.000191,2]
[420039846,1775629838738,-644.29,0.000191,2]
[420039848,1775629838748,-644.29,0.000191,2]
[420039850,1775629838757,-644.29,0.000191,2]
[420039852,1775629838767,-644.29,0.000191,2]
[420039854,1775629838777,-644.29,0.000191,2]
[420039855,1775629838787,-644.29,0.000191,2]
[420039857,1775629838797,-644.29,0.000191,2]
[420039859,1775629838807,-644.29,0.000191,2]
[420039862,1775629838819,-644.29,0.000191,2]
[420039864,1775629838828,-839.75,0.000191,2]
[420039865,1775629838839,-200.0,0.00019178,2]
[420039867,1775629838849,-160.77697936,0.00019199,2]
[420039869,1775629838859,-151.0,0.000193,2]
[420039872,1775629838869,-1367.63700415,0.000194,3]
[420039874,1775629838879,-1361.21368953,0.000194,3]
[420039876,1775629838889,-1000.0,0.00019621,2]
[420039877,1775629838899,-1000.0,0.00019621,2]
[420039879,1775629838908,-1000.0,0.00019621,2]
[420039881,1775629838919,-916.50706171,0.00019621,2]
[420040069,1775629841149,-705.0,0.000191,2]
[420040071,1775629841160,-83.49293829,0.00019621,2]
[420040073,1775629841171,-500.0,0.00019625,2]
[420040075,1775629841182,-156.91388128,0.00019625,2]
[420040077,1775629841193,-286.30288493,0.00019625,2]
[420040079,1775629841203,-278.41327513,0.00019637,2]
[420040080,1775629841214,-223.94933856,0.00019637,2]
[420040097,1775629841394,-2006.36596744,0.00019637,2]
[420040099,1775629841404,-500.0,0.00019738,2]
[420040101,1775629841415,-500.0,0.00019772,2]
[420040103,1775629841427,-162.0,0.000198,2]
[420040105,1775629841437,-1028.89313762,0.000198,2]
[420040539,1775629846772,-5839.10686238,0.000198,2]
[420040541,1775629846783,-163.0640177,0.00019817,2]
[420040543,1775629846793,-185.0,0.00019855,2]
[420040545,1775629846804,-192.0,0.00019855,2]
[420040547,1775629846815,-408.0,0.00019855,2]
[420040549,1775629846825,-154.0,0.00019855,2]
[420040550,1775629846837,-500.0,0.00019899,2]
[420040552,1775629846847,-500.0,0.00019899,2]
[420040554,1775629846857,-500.0,0.00019899,2]
[420040556,1775629846868,-500.0,0.00019899,2]
[420040558,1775629846880,-500.0,0.00019899,2]
[420040560,1775629846890,-500.0,0.00019899,2]
[420040562,1775629846903,-790.0,0.000199,2]
[420040564,1775629846914,-500.0,0.00019999,2]
[420040566,1775629846924,-13090.0,0.0002,5]
[420040568,1775629846935,-11466.85948064,0.0002,2]
[420042334,1775629880881,-1000.0,0.00013699,2]
[420042336,1775629989931,1484.38605551,0.00031,120]
[420042354,1775630242187,160.0,0.000315,120]
[420042454,1775630529675,708.0,0.000315,120]
[420042455,1775630554759,159.63931352,0.00031506,120]
[420042574,1775631032519,-1000.0,0.00013699,2]
[420042576,1775631032530,-615.0,0.00013699,2]
[420042578,1775631032540,-991.42377914,0.00016689,2]
[420042580,1775631032550,-2365.86474963,0.00016789,2]
[420042582,1775631032559,-156.271,0.00016937,2]
[420042584,1775631032569,-1200.0,0.00017083,2]
[420042586,1775631032579,-300.0,0.00017084,2]
[420042588,1775631032589,-300.0,0.00017084,2]
[420042589,1775631032598,-300.0,0.00017084,2]
[420042592,1775631032609,-300.0,0.00017084,2]
[420042594,1775631032618,-300.0,0.00017085,2]
[420042595,1775631032628,-363.98396188,0.00017089,2]
[420043464,1775631046578,-3942.5351939,0.00017089,2]
[420043466,1775631046588,-3246.9424055,0.00017289,2]
[420043468,1775631046600,-1951.74696107,0.00017289,2]
[420043470,1775631046609,-251.50659127,0.00018101,2]
[420043472,1775631046619,-249.68333228,0.00018647,2]
[420043503,1775631046927,-755.35022984,0.00018647,2]
[420043876,1775631050969,-1145.70443788,0.00018647,2]
[420043879,1775631050980,-1951.97172594,0.00019,2]
[420043881,1775631050993,-304.02827406,0.00019,2]
[420043883,1775631051004,-1159.1048248,0.00019195,2]
[420043885,1775631051015,-186.08492416,0.00019637,2]
[420043887,1775631051024,-172.43475775,0.00019637,2]
[420043889,1775631051034,-160.0,0.000198,3]
[420043891,1775631051044,-500.0,0.00019873,2]
[420043893,1775631051054,-500.0,0.00019873,2]
[420043895,1775631051063,-500.0,0.00019873,2]
[420043897,1775631051073,-500.0,0.00019873,2]
[420043899,1775631051083,-500.0,0.00019873,2]
[420043901,1775631051093,-500.0,0.00019899,2]
[420043903,1775631051103,-339.86335563,0.00019899,2]
[420043905,1775631051112,-500.0,0.00019899,2]
[420043907,1775631051121,-500.0,0.00019899,2]
[420043909,1775631051131,-500.0,0.00019899,2]
[420043911,1775631051140,-355.41349873,0.00019899,2]
[420043913,1775631051150,-500.0,0.00019899,2]
[420043915,1775631051160,-398.81960815,0.00019899,2]
[420043917,1775631051169,-500.0,0.00019899,2]
[420043919,1775631051179,-500.0,0.00019899,2]
[420043921,1775631051189,-500.0,0.00019899,2]
[420043923,1775631051199,-500.0,0.00019899,2]
[420043925,1775631051209,-500.0,0.00019899,2]
[420043927,1775631051219,-500.0,0.00019899,2]
[420043929,1775631051228,-500.0,0.00019899,2]
[420043931,1775631051238,-204.22158378,0.00019899,2]
[420043933,1775631051247,-285.32033084,0.00019899,2]
[420043935,1775631051257,-528.61056823,0.00019899,2]
[420043937,1775631051267,-36507.91560671,0.000199,2]
[420045069,1775631073423,5000.0,0.000315,120]
[420045084,1775631097987,5000.0,0.000315,120]
[420045096,1775631105524,5000.0,0.000315,120]
[420047990,1775631681090,-500.0,0.00013699,2]
[420047999,1775632001406,311.8,0.00030137,120]
[420048001,1775632078176,-175.03,0.00012894,2]
[420048002,1775632078220,-4824.97,0.00012894,2]
[420048003,1775632078244,-175.03,0.00012894,2]
[420048004,1775632078274,-427.97,0.00012894,2]
[420048005,1775632078297,-424.78402476,0.00013024,2]
[420048006,1775632098267,177.03,0.00013024,2]
[420048026,1775632232639,-603.0,0.00012893,2]
[420048027,1775632232648,-28.87264066,0.00012894,2]
[420048028,1775632232660,-970.203012,0.00012894,2]
[420048118,1775632239135,-4000.92434734,0.00012894,2]
[420048120,1775632239146,-300.0,0.00013023,2]
[420048122,1775632239156,-300.0,0.00013023,2]
[420048124,1775632239168,-1200.0,0.00013023,2]
[420048126,1775632239181,-4822.97,0.00013024,2]
[420048128,1775632239192,-1000.0,0.00013699,2]
[420048130,1775632239202,-974.50091376,0.00014325,2]
[420048157,1775632239446,-705.49908624,0.00014325,2]
[420048159,1775632239455,-274.7,0.00015,2]
[420048161,1775632239465,-250.0,0.00017036,2]
[420048163,1775632239474,-1601.5861512,0.00017352,2]
[420048393,1775632241862,-451.4572506,0.00017352,2]
[420048395,1775632241872,-182.82648637,0.00018,2]
[420048397,1775632241882,-1000.0,0.0001885,5]
[420048399,1775632241892,-654.44345334,0.00019024,2]
[420048630,1775632244121,-1799.91520286,0.00019024,2]
[420048632,1775632244131,-644.0,0.00019497,2]
[420048635,1775632244142,-1406.0,0.00019497,2]
[420048636,1775632244152,-452.745,0.00019497,2]
[420048638,1775632244162,-738.0,0.00019497,2]
[420048640,1775632244173,-184.0,0.00019497,2]
[420048642,1775632244183,-500.0,0.00019673,2]
[420048644,1775632244193,-500.0,0.00019673,2]
[420048647,1775632244204,-500.0,0.00019673,2]
[420048649,1775632244214,-500.0,0.00019673,2]
[420048650,1775632244223,-500.0,0.00019673,2]
[420048653,1775632244234,-500.0,0.00019699,2]
[420048655,1775632244244,-237.90434894,0.00019699,2]
[420048657,1775632244254,-500.0,0.00019699,2]
[420048659,1775632244263,-500.0,0.00019699,2]
[420048661,1775632244273,-500.0,0.00019699,2]
[420048663,1775632244283,-348.78944911,0.00019699,2]
[420048665,1775632244293,-529.17372571,0.00019699,2]
[420048667,1775632244302,-63.36087873,0.00019699,2]
[420048682,1775632244440,-436.63912127,0.00019699,2]
[420048684,1775632244450,-500.0,0.00019699,2]
[420048686,1775632244460,-500.0,0.00019699,2]
[420048688,1775632244471,-9814.33707702,0.000197,2]
[420048690,1775632244481,-1044310.64204509,0.000197,2]
[420048914,1775632246982,-32905.97839038,0.000197,2]
[420048916,1775632246994,-4602.33260778,0.000197,2]
[420049414,1775632303220,152.1508606,0.00030137,120]
[420049456,1775632372007,5000.0,3.3e-05,2]
[420049556,1775632714582,311.39926966,0.0001,2]
[420049570,1775632719531,200.03168543,0.000306,120]
[420049571,1775632720087,200.03168543,0.000315,120]
[420049572,1775632720668,175.25495883,0.000306,120]
[420049573,1775632721210,175.25495883,0.000315,120]
[420049574,1775632724729,172.9197098,0.000306,120]
[420049575,1775632725370,172.9197098,0.000315,120]
[420049576,1775632729438,197.2872345,0.000306,120]
[420049578,1775632732481,348.70285875,0.000306,120]
[420049579,1775632733040,348.70285875,0.000315,120]
[420049580,1775632733418,172.97387975,0.000306,120]
[420049581,1775632733963,172.97387975,0.000315,120]
[420049582,1775632734512,266.72620344,0.000306,120]
[420049583,1775632735058,266.72620344,0.000315,120]
[420049584,1775632737559,871.05298465,0.000306,120]
[420049585,1775632738142,871.05298465,0.000315,120]
[420049586,1775632742473,173.49258156,0.000306,120]
[420049587,1775632742765,546.03066045,0.000306,120]
[420049588,1775632743491,546.03066045,0.000315,120]
[420049589,1775632745923,356.58626878,0.000306,120]
[420049590,1775632746475,356.58626878,0.000315,120]
[420049591,1775632753756,203.76856927,0.000306,120]
[420049592,1775632761713,287.51922394,0.000306,120]
[420049593,1775632762261,287.51922394,0.000315,120]
[420049596,1775632774529,170.37346588,0.000306,120]
[420049597,1775632774771,170.37346588,0.000315,120]
[420049600,1775632803539,161.34,9e-05,2]
[420049601,1775632803896,161.34,9.1e-05,2]
[420049602,1775632804338,161.34,9.2e-05,2]